fUST/lending_fUST_20260410
["ID","MTS","AMOUNT","RATE_DAILY","PERIOD"]
[420209176,1775779847685,-3961.21,0.00019178,2]
[420209177,1775779847709,-899.64,0.00019178,2]
[420209178,1775779847720,-500.0,0.00019178,2]
[420209179,1775779847743,-500.0,0.00019178,2]
[420209180,1775779847754,-602.32963942,0.00019178,2]
[420209181,1775779847774,-500.0,0.00019178,2]
[420209182,1775779847787,-688.44,0.00019178,2]
[420209183,1775779847803,-500.0,0.00019178,2]
[420209184,1775779847818,-500.0,0.00019178,2]
[420209185,1775779847834,-1402.6,0.00019178,2]
[420209186,1775779847852,-1256.66,0.00019178,2]
[420209187,1775779847892,-488.86509886,0.00019178,2]
[420209188,1775779847916,-500.0,0.00019178,2]
[420209189,1775779847932,-739.51,0.00019178,2]
[420209190,1775779847942,-500.0,0.00019178,2]
[420209191,1775779847981,-500.0,0.00019178,2]
[420209192,1775779848002,-500.0,0.00019178,2]
[420209193,1775779848017,-4304.05,0.00019178,2]
[420209194,1775779848027,-500.0,0.00019178,2]
[420209195,1775779848040,-500.0,0.00019178,2]
[420209196,1775779848050,-500.0,0.00019178,2]
[420209197,1775779848063,-1205.36,0.00019178,2]
[420209198,1775779848072,-500.0,0.00019178,2]
[420209199,1775779848082,-500.0,0.00019178,2]
[420209200,1775779848099,-1630.49,0.00019178,2]
[420209201,1775779848110,-531.08400409,0.00019178,2]
[420209202,1775779848128,-1229.33,0.00019178,2]
[420209203,1775779848139,-1119.2,0.00019178,2]
[420209204,1775779848155,-1214.93,0.00019178,2]
[420209205,1775779848171,-500.0,0.00019178,2]
[420209206,1775779848192,-500.0,0.00019178,2]
[420209207,1775779848207,-1078.05,0.00019178,2]
[420209208,1775779848232,-500.0,0.00019178,2]
[420209209,1775779848259,-500.0,0.00019178,2]
[420209210,1775779848280,-1308.18,0.00019178,2]
[420209211,1775779848298,-500.0,0.00019178,2]
[420209212,1775779848337,-500.0,0.00019178,2]
[420209213,1775779848359,-500.0,0.00019178,2]
[420209214,1775779848369,-500.0,0.00019178,2]
[420209215,1775779848379,-889.22,0.00019178,2]
[420209216,1775779848392,-500.0,0.00019178,2]
[420209217,1775779848402,-500.0,0.00019178,2]
[420209218,1775779848413,-500.0,0.00019178,2]
[420209219,1775779848422,-500.0,0.00019178,18]
[420209220,1775779848433,-444.62,0.00019442,3]
[420209221,1775779848446,-222.31,0.00019442,3]
[420209222,1775779848455,-666.97,0.00019442,3]
[420209223,1775779848465,-500.0,0.00019452,2]
[420209224,1775779848489,-500.0,0.00019452,2]
[420209225,1775779848501,-500.0,0.00019452,2]
[420209226,1775779848516,-500.0,0.00019452,2]
[420209227,1775779848526,-500.0,0.00019452,2]
[420209228,1775779848540,-827.76,0.00019452,2]
[420209229,1775779848555,-1925.0203,0.00019452,2]
[420209230,1775779848567,-500.0,0.00019452,2]
[420209231,1775779848582,-500.0,0.00019452,2]
[420209232,1775779848597,-500.0,0.00019452,2]
[420209233,1775779848607,-500.0,0.00019452,2]
[420209234,1775779848626,-500.0,0.00019452,2]
[420209235,1775779848639,-500.0,0.00019452,2]
[420209236,1775779848652,-500.0,0.00019452,2]
[420209237,1775779848669,-500.0,0.00019452,2]
[420209238,1775779848685,-500.0,0.00019452,2]
[420209239,1775779848704,-500.0,0.00019452,2]
[420209240,1775779848714,-500.0,0.00019452,2]
[420209241,1775779848728,-716.91,0.00019452,2]
[420209242,1775779848749,-500.0,0.00019452,2]
[420209243,1775779848764,-500.0,0.00019452,2]
[420209244,1775779848787,-1189.73,0.00019452,2]
[420209245,1775779848802,-500.0,0.00019452,2]
[420209246,1775779848819,-879.69,0.00019452,2]
[420209247,1775779848836,-500.0,0.00019452,2]
[420209248,1775779848848,-500.0,0.00019452,2]
[420209249,1775779848867,-500.0,0.00019452,2]
[420209250,1775779848881,-712.73,0.00019452,2]
[420209251,1775779848894,-500.0,0.00019452,2]
[420209252,1775779848929,-500.0,0.00019452,2]
[420209253,1775779848939,-506.46,0.00019452,2]
[420209254,1775779848974,-500.0,0.00019452,2]
[420209255,1775779848988,-1886.04,0.00019452,2]
[420209256,1775779849013,-500.0,0.00019452,2]
[420209257,1775779849023,-500.0,0.00019452,2]
[420209258,1775779849047,-1411.95,0.00019452,2]
[420209259,1775779849059,-500.0,0.00019452,2]
[420209260,1775779849072,-500.0,0.00019452,2]
[420209261,1775779849092,-500.0,0.00019452,2]
[420209262,1775779849103,-527.9,0.00019452,2]
[420209263,1775779849116,-500.0,0.00019452,2]
[420209264,1775779849152,-500.0,0.00019452,2]
[420209265,1775779849171,-693.03,0.00019452,2]
[420209266,1775779849182,-500.0,0.00019452,2]
[420209267,1775779849195,-500.0,0.00019452,2]
[420209268,1775779849206,-500.0,0.00019452,2]
[420209269,1775779849229,-500.0,0.00019452,2]
[420209270,1775779849241,-500.0,0.00019452,2]
[420209271,1775779849251,-807.87,0.00019452,2]
[420209272,1775779849265,-500.0,0.00019452,2]
[420209273,1775779849282,-553.69,0.00019452,2]
[420209274,1775779849292,-651.39,0.00019452,2]
[420209275,1775779849303,-500.0,0.00019452,2]
[420209276,1775779849325,-720.84,0.00019452,2]
[420209277,1775779849335,-500.0,0.00019452,2]
[420209278,1775779849354,-500.0,0.00019452,2]
[420209279,1775779849370,-500.0,0.00019452,2]
[420209280,1775779849383,-500.0,0.00019452,2]
[420209281,1775779849396,-500.0,0.00019452,2]
[420209282,1775779849407,-500.0,0.00019452,2]
[420209283,1775779849424,-618.38174366,0.00019452,2]
[420209284,1775779849437,-500.0,0.00019452,2]
[420209285,1775779849460,-500.0,0.00019452,2]
[420209286,1775779849471,-500.0,0.00019452,2]
[420209287,1775779849483,-500.0,0.00019452,2]
[420209288,1775779849498,-500.0,0.00019452,2]
[420209289,1775779849508,-500.0,0.00019452,2]
[420209290,1775779849518,-500.0,0.00019452,2]
[420209291,1775779849535,-500.0,0.00019452,2]
[420209292,1775779849544,-500.0,0.00019452,2]
[420209293,1775779849555,-1186.88,0.00019452,2]
[420209294,1775779849566,-1501.57,0.00019452,2]
[420209295,1775779849577,-500.0,0.00019452,2]
[420209296,1775779849588,-500.0,0.00019452,2]
[420209297,1775779849598,-500.0,0.00019452,2]
[420209298,1775779849612,-500.0,0.00019452,2]
[420209299,1775779849626,-500.0,0.00019452,2]
[420209300,1775779849637,-500.0,0.00019452,2]
[420209301,1775779849648,-855.36,0.00019452,2]
[420209302,1775779849679,-327.09632938,0.00019452,2]
[420209303,1775779849706,-848.22,0.00019452,2]
[420209304,1775779849726,-1458.0,0.00019452,2]
[420209305,1775779849737,-500.0,0.00019452,2]
[420209306,1775779849757,-625.18,0.00019452,2]
[420209307,1775779849767,-500.0,0.00019452,2]
[420209308,1775779849788,-500.0,0.00019452,2]
[420209309,1775779849799,-500.0,0.00019452,2]
[420209310,1775779849820,-500.0,0.00019452,2]
[420209311,1775779849831,-500.0,0.00019452,2]
[420209312,1775779849854,-500.0,0.00019452,2]
[420209313,1775779849878,-1468.54,0.00019452,2]
[420209314,1775779849888,-500.0,0.00019452,2]
[420209315,1775779849907,-1156.33,0.00019452,2]
[420209316,1775779849918,-1094.87,0.00019452,2]
[420209317,1775779849928,-1345.24,0.00019452,2]
[420209318,1775779849942,-3961.21,0.00019452,2]
[420209319,1775779849956,-899.64,0.00019452,2]
[420209320,1775779849978,-500.0,0.00019452,2]
[420209321,1775779849988,-500.0,0.00019452,2]
[420209322,1775779850012,-500.0,0.00019452,2]
[420209323,1775779850023,-688.44,0.00019452,2]
[420209324,1775779850041,-500.0,0.00019452,2]
[420209325,1775779850053,-500.0,0.00019452,2]
[420209326,1775779850063,-1402.6,0.00019452,2]
[420209327,1775779850072,-1256.66,0.00019452,2]
[420209328,1775779850091,-500.0,0.00019452,2]
[420209329,1775779850101,-739.51,0.00019452,2]
[420209330,1775779850111,-547.42605377,0.00019452,2]
[420209331,1775779850122,-500.0,0.00019452,2]
[420209332,1775779850143,-500.0,0.00019452,2]
[420209333,1775779850153,-4304.05,0.00019452,2]
[420209334,1775779850164,-500.0,0.00019452,2]
[420209335,1775779850174,-500.0,0.00019452,2]
[420209336,1775779850184,-500.0,0.00019452,2]
[420209337,1775779850195,-1205.36,0.00019452,2]
[420209338,1775779850206,-500.0,0.00019452,2]
[420209339,1775779850216,-500.0,0.00019452,2]
[420209340,1775779850226,-1630.49,0.00019452,2]
[420209341,1775779850237,-1229.33,0.00019452,2]
[420209342,1775779850249,-1214.93,0.00019452,2]
[420209343,1775779850259,-1119.2,0.00019452,2]
[420209344,1775779850270,-500.0,0.00019452,2]
[420209345,1775779850280,-455.48531446,0.00019452,2]
[420209346,1775779850292,-1078.05,0.00019452,2]
[420209347,1775779850304,-500.0,0.00019452,2]
[420209348,1775779850315,-500.0,0.00019452,2]
[420209349,1775779850334,-1308.18,0.00019452,2]
[420209350,1775779850344,-500.0,0.00019452,2]
[420209351,1775779850354,-500.0,0.00019452,2]
[420209352,1775779850371,-588.52185424,0.00019452,2]
[420209353,1775779850382,-500.0,0.00019452,2]
[420209354,1775779850392,-889.22,0.00019452,2]
[420209355,1775779850401,-500.0,0.00019452,2]
[420209356,1775779850414,-500.0,0.00019452,2]
[420209357,1775779850424,-500.0,0.00019452,2]
[420209358,1775779850436,-600.0,0.0001956,2]
[420209359,1775779850448,-167.677,0.00019597,2]
[420209360,1775779850460,-363.0,0.00019632,2]
[420209361,1775779850471,-223.0,0.00019639,2]
[420209362,1775779850482,-644.0,0.00019711,2]
[420209363,1775779850780,-2206.0,0.00019711,2]
[420209364,1775779850822,-1407.0,0.00019711,2]
[420209365,1775779850836,-441.0,0.00019711,2]
[420209366,1775779850872,-184.0,0.00019711,2]
[420209367,1775779850883,-500.0,0.00019726,2]
[420209368,1775779850901,-500.0,0.00019726,2]
[420209369,1775779850915,-500.0,0.00019726,2]
[420209370,1775779850925,-500.0,0.00019726,2]
[420209371,1775779850942,-500.0,0.00019726,2]
[420209372,1775779850955,-827.76,0.00019726,2]
[420209373,1775779850965,-1925.0203,0.00019726,2]
[420209374,1775779850979,-500.0,0.00019726,2]
[420209375,1775779850989,-500.0,0.00019726,2]
[420209376,1775779851002,-500.0,0.00019726,2]
[420209377,1775779851011,-500.0,0.00019726,2]
[420209378,1775779851020,-500.0,0.00019726,2]
[420209379,1775779851035,-500.0,0.00019726,2]
[420209380,1775779851045,-500.0,0.00019726,2]
[420209381,1775779851057,-500.0,0.00019726,2]
[420209382,1775779851073,-500.0,0.00019726,2]
[420209383,1775779851082,-500.0,0.00019726,2]
[420209384,1775779851094,-500.0,0.00019726,2]
[420209385,1775779851106,-716.91,0.00019726,2]
[420209386,1775779851122,-500.0,0.00019726,2]
[420209387,1775779851133,-500.0,0.00019726,2]
[420209388,1775779851143,-1189.73,0.00019726,2]
[420209389,1775779851163,-500.0,0.00019726,2]
[420209390,1775779851172,-879.69,0.00019726,2]
[420209391,1775779851184,-500.0,0.00019726,2]
[420209392,1775779851214,-500.0,0.00019726,2]
[420209393,1775779851223,-500.0,0.00019726,2]
[420209394,1775779851249,-712.73,0.00019726,2]
[420209395,1775779851266,-500.0,0.00019726,2]
[420209396,1775779851281,-500.0,0.00019726,2]
[420209397,1775779851316,-506.46,0.00019726,2]
[420209398,1775779851332,-500.0,0.00019726,2]
[420209399,1775779851348,-1886.04,0.00019726,2]
[420209400,1775779851374,-500.0,0.00019726,2]
[420209401,1775779851384,-500.0,0.00019726,2]
[420209402,1775779851395,-1411.95,0.00019726,2]
[420209403,1775779851407,-500.0,0.00019726,2]
[420209404,1775779851423,-500.0,0.00019726,2]
[420209405,1775779851475,-531.52520484,0.00019726,2]
[420209406,1775779851509,-527.9,0.00019726,2]
[420209407,1775779851575,-500.0,0.00019726,2]
[420209408,1775779851598,-500.0,0.00019726,2]
[420209409,1775779851609,-693.03,0.00019726,2]
[420209410,1775779851618,-500.0,0.00019726,2]
[420209411,1775779851632,-500.0,0.00019726,2]
[420209412,1775779851642,-500.0,0.00019726,2]
[420209413,1775779851654,-500.0,0.00019726,2]
[420209414,1775779851667,-500.0,0.00019726,2]
[420209415,1775779851679,-807.87,0.00019726,2]
[420209416,1775779851690,-500.0,0.00019726,2]
[420209417,1775779851718,-553.69,0.00019726,2]
[420209418,1775779851727,-651.39,0.00019726,2]
[420209419,1775779851738,-500.0,0.00019726,2]
[420209420,1775779851762,-720.84,0.00019726,2]
[420209421,1775779851771,-500.0,0.00019726,2]
[420209422,1775779851783,-500.0,0.00019726,2]
[420209423,1775779851801,-500.0,0.00019726,2]
[420209424,1775779851809,-500.0,0.00019726,2]
[420209425,1775779851833,-500.0,0.00019726,2]
[420209426,1775779851845,-500.0,0.00019726,2]
[420209427,1775779851858,-500.0,0.00019726,2]
[420209428,1775779851880,-500.0,0.00019726,2]
[420209429,1775779851906,-500.0,0.00019726,2]
[420209430,1775779851920,-500.0,0.00019726,2]
[420209431,1775779851950,-500.0,0.00019726,2]
[420209432,1775779851964,-500.0,0.00019726,2]
[420209433,1775779851986,-500.0,0.00019726,2]
[420209434,1775779852000,-500.0,0.00019726,2]
[420209435,1775779852016,-500.0,0.00019726,2]
[420209436,1775779852036,-1186.88,0.00019726,2]
[420209437,1775779852046,-1501.57,0.00019726,2]
[420209438,1775779852058,-500.0,0.00019726,2]
[420209439,1775779852075,-500.0,0.00019726,2]
[420209440,1775779852094,-500.0,0.00019726,2]
[420209441,1775779852107,-500.0,0.00019726,2]
[420209442,1775779852119,-500.0,0.00019726,2]
[420209443,1775779852143,-500.0,0.00019726,2]
[420209444,1775779852167,-855.36,0.00019726,2]
[420209445,1775779852194,-848.22,0.00019726,2]
[420209446,1775779852205,-1458.0,0.00019726,2]
[420209447,1775779852222,-193.12573193,0.00019726,2]
[420209448,1775779852233,-625.18,0.00019726,2]
[420209449,1775779852266,-500.0,0.00019726,2]
[420209450,1775779852276,-500.0,0.00019726,2]
[420209451,1775779852294,-500.0,0.00019726,2]
[420209452,1775779852315,-500.0,0.00019726,2]
[420209453,1775779852325,-500.0,0.00019726,2]
[420209454,1775779852340,-500.0,0.00019726,2]
[420209455,1775779852359,-1468.54,0.00019726,2]
[420209456,1775779852372,-500.0,0.00019726,2]
[420209457,1775779852392,-1156.33,0.00019726,2]
[420209458,1775779852435,-1094.87,0.00019726,2]
[420209459,1775779852445,-1345.24,0.00019726,2]
[420209460,1775779852479,-3961.21,0.00019726,2]
[420209461,1775779852489,-899.64,0.00019726,2]
[420209462,1775779852499,-500.0,0.00019726,2]
[420209463,1775779852525,-500.0,0.00019726,2]
[420209464,1775779852535,-500.0,0.00019726,2]
[420209465,1775779852553,-688.44,0.00019726,2]
[420209466,1775779852563,-500.0,0.00019726,2]
[420209467,1775779852573,-500.0,0.00019726,2]
[420209468,1775779852583,-1402.6,0.00019726,2]
[420209469,1775779852601,-1256.66,0.00019726,2]
[420209470,1775779852611,-500.0,0.00019726,2]
[420209471,1775779852621,-739.51,0.00019726,2]
[420209472,1775779852630,-500.0,0.00019726,2]
[420209473,1775779852649,-500.0,0.00019726,2]
[420209474,1775779852659,-4304.05,0.00019726,2]
[420209475,1775779852668,-500.0,0.00019726,2]
[420209476,1775779852685,-340.99459015,0.00019726,2]
[420209477,1775779852696,-500.0,0.00019726,2]
[420209478,1775779852705,-1205.36,0.00019726,2]
[420209479,1775779852718,-500.0,0.00019726,2]
[420209480,1775779852738,-500.0,0.00019726,2]
[420209481,1775779852749,-1630.49,0.00019726,2]
[420209482,1775779852759,-1229.33,0.00019726,2]
[420209483,1775779852769,-1119.2,0.00019726,2]
[420209484,1775779852783,-1214.93,0.00019726,2]
[420209485,1775779852795,-323.38876476,0.00019726,2]
[420209486,1775779852804,-1078.05,0.00019726,2]
[420209487,1775779852814,-500.0,0.00019726,2]
[420209488,1775779852828,-500.0,0.00019726,2]
[420209489,1775779852840,-1308.18,0.00019726,2]
[420209490,1775779852849,-500.0,0.00019726,2]
[420209491,1775779852859,-500.0,0.00019726,2]
[420209492,1775779852875,-500.0,0.00019726,2]
[420209493,1775779852884,-889.22,0.00019726,2]
[420209494,1775779852895,-500.0,0.00019726,2]
[420209495,1775779852905,-500.0,0.00019726,2]
[420209496,1775779852914,-500.0,0.00019937,2]
[420209497,1775779852923,-500.0,0.00019937,2]
[420209498,1775779852933,-500.0,0.00019937,2]
[420209499,1775779852942,-500.0,0.00019937,2]
[420209500,1775779852952,-500.0,0.00019937,2]
[420209501,1775779852961,-500.0,0.00019937,2]
[420209502,1775779852971,-500.0,0.00019937,2]
[420209503,1775779852981,-322.22533577,0.00019947,2]
[420209504,1775779852991,-1243.0,0.0001995,2]
[420209505,1775779853002,-1550.35781554,0.00019973,2]
[420209506,1775779853012,-1291.33081815,0.00019973,2]
[420209507,1775779853022,-1486.19696491,0.00019977,2]
[420209508,1775779853032,-159.1246598,0.0002,2]
[420209509,1775779853042,-500.0,0.0002,2]
[420209510,1775779853055,-500.0,0.0002,2]
[420209511,1775779853065,-500.0,0.0002,2]
[420209512,1775779853076,-228.25226133,0.0002,2]
[420209513,1775779853093,-827.76,0.0002,2]
[420209514,1775779853103,-1925.0203,0.0002,2]
[420209515,1775779853113,-500.0,0.0002,2]
[420209516,1775779853123,-500.0,0.0002,2]
[420209517,1775779853140,-500.0,0.0002,2]
[420209518,1775779853156,-500.0,0.0002,2]
[420209519,1775779853166,-500.0,0.0002,2]
[420209520,1775779853180,-500.0,0.0002,2]
[420209521,1775779853195,-500.0,0.0002,2]
[420209522,1775779853205,-500.0,0.0002,2]
[420209523,1775779853232,-500.0,0.0002,2]
[420209524,1775779853267,-500.0,0.0002,2]
[420209525,1775779853291,-500.0,0.0002,2]
[420209526,1775779853303,-716.91,0.0002,2]
[420209527,1775779853332,-500.0,0.0002,2]
[420209528,1775779853342,-500.0,0.0002,2]
[420209529,1775779853386,-1189.73,0.0002,2]
[420209530,1775779853397,-500.0,0.0002,2]
[420209531,1775779853411,-879.69,0.0002,2]
[420209532,1775779853436,-616.82007184,0.0002,2]
[420209533,1775779853449,-500.0,0.0002,2]
[420209534,1775779853470,-500.0,0.0002,2]
[420209535,1775779853481,-712.73,0.0002,2]
[420209536,1775779853520,-500.0,0.0002,2]
[420209537,1775779853541,-500.0,0.0002,2]
[420209538,1775779853553,-506.46,0.0002,2]
[420209539,1775779853567,-500.0,0.0002,2]
[420209540,1775779853578,-1886.04,0.0002,2]
[420209541,1775779853597,-500.0,0.0002,2]
[420209542,1775779853607,-500.0,0.0002,2]
[420209543,1775779853624,-1411.95,0.0002,2]
[420209544,1775779853639,-500.0,0.0002,2]
[420209545,1775779853648,-500.0,0.0002,2]
[420209546,1775779853661,-527.9,0.0002,2]
[420209547,1775779853675,-500.0,0.0002,2]
[420209548,1775779853697,-500.0,0.0002,2]
[420209549,1775779853708,-693.03,0.0002,2]
[420209550,1775779853722,-500.0,0.0002,2]
[420209551,1775779853734,-500.0,0.0002,2]
[420209552,1775779853746,-500.0,0.0002,2]
[420209553,1775779853762,-500.0,0.0002,2]
[420209554,1775779853772,-500.0,0.0002,2]
[420209555,1775779853807,-807.87,0.0002,2]
[420209556,1775779853820,-500.0,0.0002,2]
[420209557,1775779853870,-553.69,0.0002,2]
[420209558,1775779853904,-651.39,0.0002,2]
[420209559,1775779853914,-561.48171253,0.0002,2]
[420209560,1775779853941,-720.84,0.0002,2]
[420209561,1775779853950,-500.0,0.0002,2]
[420209562,1775779853960,-500.0,0.0002,2]
[420209563,1775779853970,-500.0,0.0002,2]
[420209564,1775779853982,-500.0,0.0002,2]
[420209565,1775779853992,-500.0,0.0002,2]
[420209566,1775779854002,-500.0,0.0002,2]
[420209567,1775779854012,-500.0,0.0002,2]
[420209568,1775779854021,-500.0,0.0002,2]
[420209569,1775779854035,-500.0,0.0002,2]
[420209570,1775779854046,-500.0,0.0002,2]
[420209571,1775779854056,-500.0,0.0002,2]
[420209572,1775779854067,-500.0,0.0002,2]
[420209573,1775779854080,-500.0,0.0002,2]
[420209574,1775779854092,-500.0,0.0002,2]
[420209575,1775779854105,-500.0,0.0002,2]
[420209576,1775779854119,-1186.88,0.0002,2]
[420209577,1775779854147,-1501.57,0.0002,2]
[420209578,1775779854162,-500.0,0.0002,2]
[420209579,1775779854187,-500.0,0.0002,2]
[420209580,1775779854198,-500.0,0.0002,2]
[420209581,1775779854231,-343.20689495,0.0002,2]
[420209582,1775779854262,-500.0,0.0002,2]
[420209583,1775779854273,-500.0,0.0002,2]
[420209584,1775779854284,-855.36,0.0002,2]
[420209585,1775779854315,-848.22,0.0002,2]
[420209586,1775779854333,-1458.0,0.0002,2]
[420209587,1775779854357,-625.18,0.0002,2]
[420209588,1775779854373,-272.97877596,0.0002,2]
[420209589,1775779854394,-500.0,0.0002,2]
[420209590,1775779854405,-500.0,0.0002,2]
[420209591,1775779854426,-500.0,0.0002,2]
[420209592,1775779854437,-500.0,0.0002,2]
[420209593,1775779854449,-500.0,0.0002,2]
[420209594,1775779854470,-1468.54,0.0002,2]
[420209595,1775779854480,-500.0,0.0002,2]
[420209596,1775779854490,-1156.33,0.0002,2]
[420209597,1775779854514,-1094.87,0.0002,2]
[420209598,1775779854523,-1345.24,0.0002,2]
[420209599,1775779854545,-3961.21,0.0002,2]
[420209600,1775779854555,-899.64,0.0002,2]
[420209601,1775779854579,-500.0,0.0002,2]
[420209602,1775779854588,-500.0,0.0002,2]
[420209603,1775779854601,-500.0,0.0002,2]
[420209604,1775779854614,-688.44,0.0002,2]
[420209605,1775779854629,-500.0,0.0002,2]
[420209606,1775779854639,-500.0,0.0002,2]
[420209607,1775779854649,-1402.6,0.0002,2]
[420209608,1775779854658,-1256.66,0.0002,2]
[420209609,1775779854672,-500.0,0.0002,2]
[420209610,1775779854687,-739.51,0.0002,2]
[420209611,1775779854696,-500.0,0.0002,2]
[420209612,1775779854707,-500.0,0.0002,2]
[420209613,1775779854716,-4304.05,0.0002,2]
[420209614,1775779854732,-500.0,0.0002,2]
[420209615,1775779854743,-500.0,0.0002,2]
[420209616,1775779854751,-1205.36,0.0002,2]
[420209617,1775779854761,-500.0,0.0002,2]
[420209618,1775779854784,-500.0,0.0002,2]
[420209619,1775779854795,-1630.49,0.0002,2]
[420209620,1775779854804,-1229.33,0.0002,2]
[420209621,1775779854821,-1119.2,0.0002,2]
[420209622,1775779854839,-1214.93,0.0002,2]
[420209623,1775779854849,-1078.05,0.0002,2]
[420209624,1775779854858,-500.0,0.0002,2]
[420209625,1775779854872,-500.0,0.0002,2]
[420209626,1775779854881,-1308.18,0.0002,2]
[420209627,1775779854899,-200.0,0.0002,2]
[420209628,1775779854909,-500.0,0.0002,2]
[420209629,1775779854919,-500.0,0.0002,2]
[420209630,1775779854933,-155.67103755,0.0002,2]
[420209631,1775779854949,-889.22,0.0002,2]
[420209632,1775779854964,-500.0,0.0002,2]
[420209633,1775779854974,-500.0,0.0002,2]
[420209634,1775779854983,-500.0,0.00020273,2]
[420209635,1775779855035,-500.0,0.00020273,2]
[420209636,1775779855047,-500.0,0.00020273,2]
[420209637,1775779855061,-827.76,0.00020273,2]
[420209638,1775779855072,-1925.0203,0.00020273,2]
[420209639,1775779855083,-500.0,0.00020273,2]
[420209640,1775779855092,-500.0,0.00020273,2]
[420209641,1775779855107,-500.0,0.00020273,2]
[420209642,1775779855132,-500.0,0.00020273,2]
[420209643,1775779855141,-500.0,0.00020273,2]
[420209644,1775779855155,-500.0,0.00020273,2]
[420209645,1775779855203,-500.0,0.00020273,2]
[420209646,1775779855212,-500.0,0.00020273,2]
[420209647,1775779855261,-500.0,0.00020273,2]
[420209648,1775779855284,-500.0,0.00020273,2]
[420209649,1775779855302,-500.0,0.00020273,2]
[420209650,1775779855318,-716.91,0.00020273,2]
[420209651,1775779855337,-500.0,0.00020273,2]
[420209652,1775779855357,-500.0,0.00020273,2]
[420209653,1775779855387,-1189.73,0.00020273,2]
[420209654,1775779855404,-500.0,0.00020273,2]
[420209655,1775779855451,-879.69,0.00020273,2]
[420209656,1775779855460,-500.0,0.00020273,2]
[420209657,1775779855492,-500.0,0.00020273,2]
[420209658,1775779855501,-712.73,0.00020273,2]
[420209659,1775779855511,-500.0,0.00020273,2]
[420209660,1775779855523,-500.0,0.00020273,2]
[420209661,1775779855544,-506.46,0.00020273,2]
[420209662,1775779855565,-500.0,0.00020273,2]
[420209663,1775779855575,-1886.04,0.00020273,2]
[420209664,1775779855600,-500.0,0.00020273,2]
[420209665,1775779855621,-500.0,0.00020273,2]
[420209666,1775779855640,-1411.95,0.00020273,2]
[420209667,1775779855798,-500.0,0.00020273,2]
[420209668,1775779855814,-500.0,0.00020273,2]
[420209669,1775779855828,-527.9,0.00020273,2]
[420209670,1775779855852,-500.0,0.00020273,2]
[420209671,1775779855862,-500.0,0.00020273,2]
[420209672,1775779855877,-693.03,0.00020273,2]
[420209673,1775779855890,-500.0,0.00020273,2]
[420209674,1775779855901,-500.0,0.00020273,2]
[420209675,1775779855919,-500.0,0.00020273,2]